[Event "Titled Tuesday Blitz February 15 Early 2022"]
[White "Demin, Vladimir"]
[Black "Timofeev, Artyom"]
[WhiteFideId "4167457"]
[BlackFideId "4140419"]
[WhiteElo "2476"]
[BlackElo "2583"]
[Result "0-1"]
[Round "01"]
[TimeControl "180+1"]
[Date "2022.02.15"]
[WhiteClock "0:00:03"]
[BlackClock "0:00:20"]

1. e4 {[%clk 0:03:00]}  c5 {[%clk 0:02:59]} 2. Nf3 {[%clk 0:03:00]}  d6 {[%clk 0:02:59]} 3. d4 {[%clk 0:03:00]}  cxd4 {[%clk 0:02:59]} 4. Qxd4 {[%clk 0:03:00]}  Nc6 {[%clk 0:02:58]} 5. Bb5 {[%clk 0:03:01]}  Nf6 {[%clk 0:02:59]} 6. Nc3 {[%clk 0:03:00]}  Bd7 {[%clk 0:02:58]} 7. Bxc6 {[%clk 0:03:00]}  Bxc6 {[%clk 0:02:58]} 8. Bg5 {[%clk 0:03:00]}  e6 {[%clk 0:02:56]} 9. O-O-O {[%clk 0:03:00]}  Be7 {[%clk 0:02:57]} 10. Qd3 {[%clk 0:03:00]}  Qa5 {[%clk 0:02:53]} 11. Kb1 {[%clk 0:02:59]}  O-O {[%clk 0:02:50]} 12. Bc1 {[%clk 0:02:55]}  Qa6 {[%clk 0:02:44]} 13. Qxa6 {[%clk 0:02:54]}  bxa6 {[%clk 0:02:44]} 14. Rhe1 {[%clk 0:02:50]}  a5 {[%clk 0:02:39]} 15. Nd4 {[%clk 0:02:49]}  Bb7 {[%clk 0:02:35]} 16. f3 {[%clk 0:02:47]}  d5 {[%clk 0:02:14]} 17. exd5 {[%clk 0:01:37]}  Nxd5 {[%clk 0:02:13]} 18. Nxd5 {[%clk 0:01:36]}  Bxd5 {[%clk 0:02:13]} 19. Nb5 {[%clk 0:01:36]}  Bc6 {[%clk 0:02:05]} 20. Nd4 {[%clk 0:01:34]}  Bd5 {[%clk 0:01:42]} 21. Nb5 {[%clk 0:01:33]}  Rab8 {[%clk 0:01:40]} 22. a4 {[%clk 0:01:08]}  Bc6 {[%clk 0:01:33]} 23. Bf4 {[%clk 0:01:06]}  Rb7 {[%clk 0:01:30]} 24. Nc3 {[%clk 0:00:32]}  Bb4 {[%clk 0:01:25]} 25. Re3 {[%clk 0:00:32]}  h6 {[%clk 0:01:16]} 26. Bd6 {[%clk 0:00:30]}  Rc8 {[%clk 0:01:16]} 27. b3 {[%clk 0:00:20]}  a6 {[%clk 0:00:42]} 28. Bxb4 {[%clk 0:00:15]}  axb4 {[%clk 0:00:42]} 29. Ne4 {[%clk 0:00:15]}  Bd5 {[%clk 0:00:41]} 30. Nd6 {[%clk 0:00:14]}  Rcb8 {[%clk 0:00:41]} 31. Nxb7 {[%clk 0:00:14]}  Rxb7 {[%clk 0:00:42]} 32. Rd4 {[%clk 0:00:15]}  a5 {[%clk 0:00:41]} 33. Kb2 {[%clk 0:00:14]}  Kf8 {[%clk 0:00:41]} 34. h4 {[%clk 0:00:13]}  g6 {[%clk 0:00:38]} 35. Re5 {[%clk 0:00:12]}  Rd7 {[%clk 0:00:37]} 36. c4 {[%clk 0:00:11]}  bxc3+ {[%clk 0:00:37]} 37. Kxc3 {[%clk 0:00:12]}  f6 {[%clk 0:00:32]} 38. Re3 {[%clk 0:00:09]}  Ke7 {[%clk 0:00:32]} 39. Kb2 {[%clk 0:00:09]}  Kd6 {[%clk 0:00:32]} 40. Rd2 {[%clk 0:00:06]}  Rb7 {[%clk 0:00:31]} 41. Rc3 {[%clk 0:00:06]}  g5 {[%clk 0:00:30]} 42. hxg5 {[%clk 0:00:06]}  hxg5 {[%clk 0:00:30]} 43. Rd1 {[%clk 0:00:05]}  f5 {[%clk 0:00:30]} 44. Rh1 {[%clk 0:00:05]}  Ke5 {[%clk 0:00:27]} 45. g3 {[%clk 0:00:04]}  Kd6 {[%clk 0:00:23]} 46. Rh8 {[%clk 0:00:04]}  Ke5 {[%clk 0:00:23]} 47. Rd8 {[%clk 0:00:04]}  Rb6 {[%clk 0:00:21]} 48. Rdc8 {[%clk 0:00:04]}  f4 {[%clk 0:00:20]} 49. g4 {[%clk 0:00:03]}  Kd4 {[%clk 0:00:20]} 50. R8c5 {[%clk 0:00:03]}  Bxb3 {[%clk 0:00:18]} 51. Rb5 {[%clk 0:00:02]}  Rxb5 {[%clk 0:00:18]} 52. axb5 {[%clk 0:00:03]}  Bd5 {[%clk 0:00:19]} 53. b6 {[%clk 0:00:03]}  a4 {[%clk 0:00:19]} 54. Ra3 {[%clk 0:00:04]}  Kc5 {[%clk 0:00:19]} 55. Rxa4 {[%clk 0:00:03]}  Kxb6 {[%clk 0:00:19]} 56. Kc3 {[%clk 0:00:04]}  Kc5 {[%clk 0:00:20]} 57. Ra5+ {[%clk 0:00:03]}  Kd6 {[%clk 0:00:20]} 58. Ra6+ {[%clk 0:00:03]}  Ke5 {[%clk 0:00:20]} 59. Ra5 {[%clk 0:00:03]}  Kf6 {[%clk 0:00:20]} 60. Kd4 {[%clk 0:00:02]}  Bxf3 {[%clk 0:00:20]} 61. Re5 {[%clk 0:00:02]}  Bxg4 {[%clk 0:00:20]} 62. Re1 {[%clk 0:00:03]}  Bf5 {[%clk 0:00:20]} 63. Rg1 {[%clk 0:00:03]}  e5+ {[%clk 0:00:20]} 64. Kd5 {[%clk 0:00:03]}  e4 {[%clk 0:00:21]} 65. Ra1 {[%clk 0:00:02]}  e3 {[%clk 0:00:21]} 66. Ra6+ {[%clk 0:00:03]}  Kg7 {[%clk 0:00:21]} 67. Ke5 {[%clk 0:00:02]}  e2 {[%clk 0:00:20]} 68. Ra1 {[%clk 0:00:02]}  f3 {[%clk 0:00:20]} 69. Kxf5 {[%clk 0:00:02]}  f2 {[%clk 0:00:20]} 70. Ra7+ {[%clk 0:00:02]}  Kf8 {[%clk 0:00:20]} 71. Ra8+ {[%clk 0:00:03]}  Ke7 {[%clk 0:00:19]} 72. Ra7+ {[%clk 0:00:03]}  Kd6 {[%clk 0:00:20]} 0-1


[Site "https://www.chess.com"]

[Event "Titled Tuesday Blitz February 15 Early 2022"]
[White "Deuer, Marius"]
[Black "Barp, Alberto"]
[WhiteFideId "16236432"]
[BlackFideId "872555"]
[WhiteElo "2091"]
[BlackElo "2229"]
[Result "0-1"]
[Round "01"]
[TimeControl "180+1"]
[Date "2022.02.15"]
[WhiteClock "0:00:08"]
[BlackClock "0:00:18"]

1. e4 {[%clk 0:02:59]}  c6 {[%clk 0:02:58]} 2. Nf3 {[%clk 0:02:57]}  d5 {[%clk 0:02:59]} 3. Nc3 {[%clk 0:02:56]}  Bg4 {[%clk 0:02:55]} 4. h3 {[%clk 0:02:54]}  Bxf3 {[%clk 0:02:53]} 5. Qxf3 {[%clk 0:02:55]}  e6 {[%clk 0:02:52]} 6. d3 {[%clk 0:02:52]}  Nf6 {[%clk 0:02:47]} 7. Qg3 {[%clk 0:02:53]}  Qb6 {[%clk 0:02:42]} 8. Bd2 {[%clk 0:02:45]}  d4 {[%clk 0:02:16]} 9. Na4 {[%clk 0:02:39]}  Qa6 {[%clk 0:02:08]} 10. b3 {[%clk 0:01:53]}  b5 {[%clk 0:01:50]} 11. Nb2 {[%clk 0:01:37]}  Qa3 {[%clk 0:01:49]} 12. Nd1 {[%clk 0:01:37]}  Nbd7 {[%clk 0:01:40]} 13. Be2 {[%clk 0:01:26]}  Bb4 {[%clk 0:01:36]} 14. c3 {[%clk 0:01:17]}  dxc3 {[%clk 0:01:35]} 15. Nxc3 {[%clk 0:01:18]}  Qa5 {[%clk 0:01:18]} 16. Nb1 {[%clk 0:01:07]}  O-O {[%clk 0:01:08]} 17. Qe3 {[%clk 0:00:55]}  e5 {[%clk 0:00:55]} 18. Bxb4 {[%clk 0:00:32]}  Qxb4+ {[%clk 0:00:53]} 19. Qd2 {[%clk 0:00:33]}  Qd4 {[%clk 0:00:52]} 20. Qc3 {[%clk 0:00:31]}  Qxc3+ {[%clk 0:00:49]} 21. Nxc3 {[%clk 0:00:32]}  Nc5 {[%clk 0:00:50]} 22. O-O {[%clk 0:00:31]}  Ne6 {[%clk 0:00:48]} 23. Bg4 {[%clk 0:00:29]}  Nd4 {[%clk 0:00:44]} 24. Rac1 {[%clk 0:00:29]}  Nxg4 {[%clk 0:00:42]} 25. hxg4 {[%clk 0:00:30]}  b4 {[%clk 0:00:43]} 26. Na4 {[%clk 0:00:27]}  Ne2+ {[%clk 0:00:42]} 27. Kh2 {[%clk 0:00:27]}  Nxc1 {[%clk 0:00:42]} 28. Rxc1 {[%clk 0:00:28]}  Rac8 {[%clk 0:00:28]} 29. Rc5 {[%clk 0:00:27]}  f6 {[%clk 0:00:27]} 30. Rc4 {[%clk 0:00:26]}  Rfd8 {[%clk 0:00:23]} 31. Nb2 {[%clk 0:00:26]}  c5 {[%clk 0:00:22]} 32. Kg3 {[%clk 0:00:24]}  Rd4 {[%clk 0:00:22]} 33. Rc2 {[%clk 0:00:23]}  Kf7 {[%clk 0:00:22]} 34. Kf3 {[%clk 0:00:24]}  Rd6 {[%clk 0:00:20]} 35. Ke3 {[%clk 0:00:24]}  Ra6 {[%clk 0:00:20]} 36. Na4 {[%clk 0:00:24]}  Rac6 {[%clk 0:00:20]} 37. Rc4 {[%clk 0:00:23]}  Ke6 {[%clk 0:00:20]} 38. Nb2 {[%clk 0:00:23]}  Kd6 {[%clk 0:00:21]} 39. Na4 {[%clk 0:00:22]}  g6 {[%clk 0:00:20]} 40. f3 {[%clk 0:00:21]}  Rh8 {[%clk 0:00:20]} 41. Nb2 {[%clk 0:00:17]}  h5 {[%clk 0:00:20]} 42. gxh5 {[%clk 0:00:15]}  Rxh5 {[%clk 0:00:21]} 43. Nd1 {[%clk 0:00:15]}  Rh1 {[%clk 0:00:21]} 44. Nf2 {[%clk 0:00:14]}  Ra1 {[%clk 0:00:20]} 45. Ng4 {[%clk 0:00:14]}  Ke6 {[%clk 0:00:21]} 46. Rc2 {[%clk 0:00:13]}  f5 {[%clk 0:00:18]} 47. exf5+ {[%clk 0:00:12]}  gxf5 {[%clk 0:00:19]} 48. Nf2 {[%clk 0:00:12]}  f4+ {[%clk 0:00:19]} 49. Ke2 {[%clk 0:00:12]}  Ra6 {[%clk 0:00:18]} 50. Ne4 {[%clk 0:00:07]}  R6xa2 {[%clk 0:00:18]} 51. Nxc5+ {[%clk 0:00:08]}  Kd5 {[%clk 0:00:18]} 0-1


[Site "https://www.chess.com"]

[Event "Titled Tuesday Blitz February 15 Early 2022"]
[White "Djokic, Mihailo"]
[Black "Tuleyeva-Aketayeva, Dana"]
[WhiteFideId "976440"]
[BlackFideId "13701932"]
[WhiteElo "2008"]
[BlackElo "1944"]
[Result "1-0"]
[Round "01"]
[TimeControl "180+1"]
[Date "2022.02.15"]
[WhiteClock "0:02:20"]
[BlackClock "0:01:24"]

1. e4 {[%clk 0:03:00]}  c5 {[%clk 0:02:50]} 2. Nf3 {[%clk 0:02:57]}  Nc6 {[%clk 0:02:46]} 3. d4 {[%clk 0:02:56]}  cxd4 {[%clk 0:02:47]} 4. Nxd4 {[%clk 0:02:49]}  g6 {[%clk 0:02:46]} 5. Nc3 {[%clk 0:02:48]}  Bg7 {[%clk 0:02:46]} 6. Be3 {[%clk 0:02:48]}  d6 {[%clk 0:02:47]} 7. f3 {[%clk 0:02:48]}  Nf6 {[%clk 0:02:47]} 8. Qd2 {[%clk 0:02:48]}  O-O {[%clk 0:02:48]} 9. O-O-O {[%clk 0:02:48]}  Bd7 {[%clk 0:02:34]} 10. g4 {[%clk 0:02:46]}  Bxg4 {[%clk 0:02:28]} 11. fxg4 {[%clk 0:02:44]}  Nxg4 {[%clk 0:02:29]} 12. Nxc6 {[%clk 0:02:40]}  bxc6 {[%clk 0:02:27]} 13. Be2 {[%clk 0:02:30]}  Nxe3 {[%clk 0:02:08]} 14. Qxe3 {[%clk 0:02:29]}  Qa5 {[%clk 0:02:09]} 15. a3 {[%clk 0:02:29]}  Rab8 {[%clk 0:01:56]} 16. Bc4 {[%clk 0:02:28]}  Rxb2 {[%clk 0:01:38]} 17. Kxb2 {[%clk 0:02:24]}  Bxc3+ {[%clk 0:01:31]} 18. Qxc3 {[%clk 0:02:23]}  Rb8+ {[%clk 0:01:31]} 19. Bb3 {[%clk 0:02:24]}  Qa4 {[%clk 0:01:27]} 20. Rd4 {[%clk 0:02:21]}  Qb5 {[%clk 0:01:24]} 21. Rb4 {[%clk 0:02:20]} 1-0


[Site "https://www.chess.com"]

[Event "Titled Tuesday Blitz February 15 Early 2022"]
[White "Gabdrakhmanov, Azat"]
[Black "Fajdetic, Hrvoje"]
[WhiteFideId "34189197"]
[BlackFideId "14501945"]
[WhiteElo "2279"]
[BlackElo "2140"]
[Result "1-0"]
[Round "01"]
[TimeControl "180+1"]
[Date "2022.02.15"]
[WhiteClock "0:01:16"]
[BlackClock "0:00:16"]

1. e4 {[%clk 0:02:59]}  e6 {[%clk 0:02:59]} 2. d4 {[%clk 0:02:59]}  d5 {[%clk 0:03:00]} 3. e5 {[%clk 0:02:59]}  c5 {[%clk 0:03:00]} 4. c3 {[%clk 0:03:00]}  Nc6 {[%clk 0:03:00]} 5. Nf3 {[%clk 0:02:57]}  Bd7 {[%clk 0:03:00]} 6. a3 {[%clk 0:02:57]}  f6 {[%clk 0:03:00]} 7. b4 {[%clk 0:02:55]}  c4 {[%clk 0:02:59]} 8. Bf4 {[%clk 0:02:53]}  fxe5 {[%clk 0:02:58]} 9. dxe5 {[%clk 0:02:52]}  Nge7 {[%clk 0:02:36]} 10. Nbd2 {[%clk 0:02:52]}  Nf5 {[%clk 0:02:25]} 11. g4 {[%clk 0:02:47]}  Nh4 {[%clk 0:02:23]} 12. Bg3 {[%clk 0:02:32]}  Be7 {[%clk 0:02:18]} 13. Be2 {[%clk 0:02:15]}  O-O {[%clk 0:02:17]} 14. O-O {[%clk 0:02:13]}  Be8 {[%clk 0:02:07]} 15. b5 {[%clk 0:02:12]}  Na5 {[%clk 0:02:06]} 16. Nd4 {[%clk 0:02:12]}  Qd7 {[%clk 0:01:52]} 17. f4 {[%clk 0:02:11]}  b6 {[%clk 0:01:28]} 18. Qe1 {[%clk 0:02:09]}  Ng6 {[%clk 0:01:17]} 19. f5 {[%clk 0:02:09]}  exf5 {[%clk 0:01:15]} 20. gxf5 {[%clk 0:02:09]}  Nh8 {[%clk 0:01:08]} 21. Bg4 {[%clk 0:01:51]}  Bc5 {[%clk 0:01:07]} 22. Qe2 {[%clk 0:01:49]}  Bxd4+ {[%clk 0:00:51]} 23. cxd4 {[%clk 0:01:50]}  c3 {[%clk 0:00:51]} 24. Nf3 {[%clk 0:01:42]}  Qxb5 {[%clk 0:00:51]} 25. Qg2 {[%clk 0:01:40]}  Nb3 {[%clk 0:00:39]} 26. Rab1 {[%clk 0:01:35]}  Qc4 {[%clk 0:00:34]} 27. f6 {[%clk 0:01:23]}  Nxd4 {[%clk 0:00:26]} 28. Nxd4 {[%clk 0:01:19]}  Qxd4+ {[%clk 0:00:26]} 29. Bf2 {[%clk 0:01:19]}  Qe4 {[%clk 0:00:20]} 30. Be6+ {[%clk 0:01:18]}  Rf7 {[%clk 0:00:16]} 31. Qxg7# {[%clk 0:01:16]} 1-0


[Site "https://www.chess.com"]

[Event "Titled Tuesday Blitz February 15 Early 2022"]
[White "Gan-Erdene, Sugar"]
[Black "Rosenberg, Evan S"]
[WhiteFideId "4902980"]
[BlackFideId "2019299"]
[WhiteElo "2256"]
[BlackElo "2326"]
[Result "1-0"]
[Round "01"]
[TimeControl "180+1"]
[Date "2022.02.15"]
[WhiteClock "0:02:07"]
[BlackClock "0:00:18"]

1. d4 {[%clk 0:02:59]}  Nf6 {[%clk 0:02:59]} 2. c4 {[%clk 0:02:59]}  e6 {[%clk 0:02:58]} 3. g3 {[%clk 0:03:00]}  d5 {[%clk 0:02:57]} 4. Nf3 {[%clk 0:03:00]}  Bb4+ {[%clk 0:02:56]} 5. Bd2 {[%clk 0:03:00]}  Be7 {[%clk 0:02:55]} 6. Bg2 {[%clk 0:02:59]}  c6 {[%clk 0:02:48]} 7. Qc2 {[%clk 0:02:59]}  a5 {[%clk 0:02:46]} 8. O-O {[%clk 0:02:59]}  Nbd7 {[%clk 0:02:44]} 9. b3 {[%clk 0:02:58]}  Ne4 {[%clk 0:02:33]} 10. Bf4 {[%clk 0:02:54]}  O-O {[%clk 0:02:28]} 11. Nbd2 {[%clk 0:02:53]}  Ndf6 {[%clk 0:02:26]} 12. Ne5 {[%clk 0:02:51]}  Bb4 {[%clk 0:02:17]} 13. Nxe4 {[%clk 0:02:50]}  dxe4 {[%clk 0:02:14]} 14. Rad1 {[%clk 0:02:42]}  Qe7 {[%clk 0:01:56]} 15. Bxe4 {[%clk 0:02:34]}  Nxe4 {[%clk 0:01:56]} 16. Qxe4 {[%clk 0:02:35]}  f6 {[%clk 0:01:48]} 17. Nd3 {[%clk 0:02:35]}  Bd6 {[%clk 0:01:26]} 18. Bxd6 {[%clk 0:02:29]}  Qxd6 {[%clk 0:01:27]} 19. Qf4 {[%clk 0:02:29]}  Qa3 {[%clk 0:01:12]} 20. Rd2 {[%clk 0:02:26]}  a4 {[%clk 0:01:08]} 21. b4 {[%clk 0:02:25]}  Qc3 {[%clk 0:01:07]} 22. Rc1 {[%clk 0:02:24]}  e5 {[%clk 0:01:01]} 23. dxe5 {[%clk 0:02:19]}  Qa3 {[%clk 0:00:59]} 24. exf6 {[%clk 0:02:15]}  Rxf6 {[%clk 0:00:54]} 25. Qd4 {[%clk 0:02:14]}  Bf5 {[%clk 0:00:52]} 26. Rc3 {[%clk 0:02:14]}  Qxc3 {[%clk 0:00:29]} 27. Qxc3 {[%clk 0:02:13]}  a3 {[%clk 0:00:30]} 28. Nc5 {[%clk 0:02:11]}  Bh3 {[%clk 0:00:26]} 29. f3 {[%clk 0:02:10]}  b6 {[%clk 0:00:23]} 30. Ne4 {[%clk 0:02:10]}  Rff8 {[%clk 0:00:19]} 31. g4 {[%clk 0:02:08]}  h5 {[%clk 0:00:18]} 32. Rd7 {[%clk 0:02:07]} 1-0


[Site "https://www.chess.com"]

[Event "Titled Tuesday Blitz February 15 Early 2022"]
[White "Gant, Chris J"]
[Black "Ratnakaran, K."]
[WhiteFideId "403946"]
[BlackFideId "5005507"]
[WhiteElo "2176"]
[BlackElo "2391"]
[Result "1-0"]
[Round "01"]
[TimeControl "180+1"]
[Date "2022.02.15"]
[WhiteClock "0:00:58"]
[BlackClock "0:01:23"]

1. d4 {[%clk 0:03:00]}  Nf6 {[%clk 0:02:59]} 2. c4 {[%clk 0:03:00]}  c5 {[%clk 0:02:59]} 3. d5 {[%clk 0:03:00]}  e6 {[%clk 0:03:00]} 4. Nc3 {[%clk 0:03:00]}  exd5 {[%clk 0:03:01]} 5. cxd5 {[%clk 0:03:00]}  d6 {[%clk 0:03:01]} 6. e4 {[%clk 0:03:00]}  g6 {[%clk 0:03:02]} 7. Bd3 {[%clk 0:02:58]}  Bg7 {[%clk 0:03:02]} 8. h3 {[%clk 0:02:57]}  O-O {[%clk 0:03:02]} 9. Nf3 {[%clk 0:02:58]}  Re8 {[%clk 0:03:02]} 10. O-O {[%clk 0:02:56]}  a6 {[%clk 0:03:02]} 11. a4 {[%clk 0:02:56]}  Nbd7 {[%clk 0:03:02]} 12. Bf4 {[%clk 0:02:51]}  Qc7 {[%clk 0:02:58]} 13. Re1 {[%clk 0:02:46]}  c4 {[%clk 0:02:51]} 14. Bc2 {[%clk 0:02:44]}  Rb8 {[%clk 0:02:50]} 15. Nd4 {[%clk 0:02:36]}  Qb6 {[%clk 0:02:40]} 16. a5 {[%clk 0:02:24]}  Qxb2 {[%clk 0:02:38]} 17. Qd2 {[%clk 0:02:24]}  Qb4 {[%clk 0:02:32]} 18. Reb1 {[%clk 0:02:19]}  Qc5 {[%clk 0:02:31]} 19. Be3 {[%clk 0:02:18]}  Qc7 {[%clk 0:02:27]} 20. f3 {[%clk 0:02:10]}  Nc5 {[%clk 0:02:24]} 21. Na4 {[%clk 0:02:00]}  Nxa4 {[%clk 0:02:21]} 22. Bxa4 {[%clk 0:01:59]}  Bd7 {[%clk 0:02:20]} 23. Bxd7 {[%clk 0:01:57]}  Nxd7 {[%clk 0:02:20]} 24. Ra4 {[%clk 0:01:43]}  Rec8 {[%clk 0:02:17]} 25. Qc3 {[%clk 0:01:40]}  Ne5 {[%clk 0:02:08]} 26. Rc1 {[%clk 0:01:36]}  Nd3 {[%clk 0:02:01]} 27. Rxc4 {[%clk 0:01:27]}  Qxc4 {[%clk 0:01:56]} 28. Qxc4 {[%clk 0:01:26]}  Nxc1 {[%clk 0:01:56]} 29. Qb4 {[%clk 0:01:20]}  Be5 {[%clk 0:01:47]} 30. f4 {[%clk 0:01:18]}  Bxd4 {[%clk 0:01:44]} 31. Bxd4 {[%clk 0:01:17]}  Ne2+ {[%clk 0:01:44]} 32. Kh2 {[%clk 0:01:15]}  Nxd4 {[%clk 0:01:44]} 33. Qxd4 {[%clk 0:01:14]}  Rc5 {[%clk 0:01:44]} 34. e5 {[%clk 0:01:14]}  Rxa5 {[%clk 0:01:44]} 35. e6 {[%clk 0:01:13]}  Rc5 {[%clk 0:01:37]} 36. Qf6 {[%clk 0:01:13]}  Rc7 {[%clk 0:01:34]} 37. f5 {[%clk 0:01:10]}  Rf8 {[%clk 0:01:29]} 38. Qg5 {[%clk 0:01:07]}  f6 {[%clk 0:01:28]} 39. Qf4 {[%clk 0:01:05]}  gxf5 {[%clk 0:01:27]} 40. Qxd6 {[%clk 0:01:04]}  Rg7 {[%clk 0:01:27]} 41. Qf4 {[%clk 0:00:59]}  Rd8 {[%clk 0:01:27]} 42. Qxf5 {[%clk 0:00:58]}  Rg5 {[%clk 0:01:26]} 43. Qxf6 {[%clk 0:00:58]}  Rdxd5 {[%clk 0:01:23]} 44. e7 {[%clk 0:00:58]} 1-0


[Site "https://www.chess.com"]

[Event "Titled Tuesday Blitz February 15 Early 2022"]
[White "Glidzhain, Gor"]
[Black "Topalov, Aleksandar"]
[WhiteFideId "24109932"]
[BlackFideId "925659"]
[WhiteElo "2229"]
[BlackElo "2098"]
[Result "1-0"]
[Round "01"]
[TimeControl "180+1"]
[Date "2022.02.15"]
[WhiteClock "0:00:30"]
[BlackClock "0:00:33"]

1. e4 {[%clk 0:03:00]}  e6 {[%clk 0:02:02]} 2. d4 {[%clk 0:02:59]}  d5 {[%clk 0:02:02]} 3. Nc3 {[%clk 0:02:58]}  Bb4 {[%clk 0:02:02]} 4. exd5 {[%clk 0:02:57]}  exd5 {[%clk 0:02:01]} 5. Bd3 {[%clk 0:02:57]}  Ne7 {[%clk 0:02:01]} 6. Nf3 {[%clk 0:02:57]}  Bf5 {[%clk 0:01:58]} 7. O-O {[%clk 0:02:57]}  Bxc3 {[%clk 0:01:57]} 8. bxc3 {[%clk 0:02:56]}  O-O {[%clk 0:01:57]} 9. Re1 {[%clk 0:02:54]}  Bxd3 {[%clk 0:01:54]} 10. cxd3 {[%clk 0:02:53]}  Nbc6 {[%clk 0:01:51]} 11. c4 {[%clk 0:02:42]}  Re8 {[%clk 0:01:45]} 12. Bg5 {[%clk 0:02:32]}  Qd7 {[%clk 0:01:35]} 13. Bxe7 {[%clk 0:02:18]}  Rxe7 {[%clk 0:01:31]} 14. Rxe7 {[%clk 0:02:18]}  Nxe7 {[%clk 0:01:16]} 15. Qb3 {[%clk 0:02:04]}  b6 {[%clk 0:01:13]} 16. Re1 {[%clk 0:02:03]}  Rd8 {[%clk 0:00:59]} 17. Ne5 {[%clk 0:01:46]}  Qd6 {[%clk 0:00:40]} 18. cxd5 {[%clk 0:00:34]}  Nxd5 {[%clk 0:00:36]} 19. h3 {[%clk 0:00:34]}  h6 {[%clk 0:00:36]} 20. Rc1 {[%clk 0:00:33]}  Nf4 {[%clk 0:00:33]} 21. Qxf7+ {[%clk 0:00:30]} 1-0


[Site "https://www.chess.com"]

[Event "Titled Tuesday Blitz February 15 Early 2022"]
[White "Goldin, Roman"]
[Black "Gunina, Valentina"]
[WhiteFideId "2803860"]
[BlackFideId "4167570"]
[WhiteElo "2312"]
[BlackElo "2465"]
[Result "0-1"]
[Round "01"]
[TimeControl "180+1"]
[Date "2022.02.15"]
[WhiteClock "0:00:40"]
[BlackClock "0:01:53"]

1. Nf3 {[%clk 0:02:58]}  d5 {[%clk 0:02:59]} 2. e3 {[%clk 0:02:57]}  c6 {[%clk 0:02:57]} 3. c4 {[%clk 0:02:56]}  Nf6 {[%clk 0:02:56]} 4. b3 {[%clk 0:02:56]}  Bg4 {[%clk 0:02:56]} 5. Bb2 {[%clk 0:02:56]}  e6 {[%clk 0:02:55]} 6. Be2 {[%clk 0:02:56]}  Bd6 {[%clk 0:02:55]} 7. O-O {[%clk 0:02:56]}  Nbd7 {[%clk 0:02:54]} 8. d4 {[%clk 0:02:56]}  O-O {[%clk 0:02:53]} 9. Nbd2 {[%clk 0:02:56]}  a5 {[%clk 0:02:50]} 10. a3 {[%clk 0:02:54]}  Rc8 {[%clk 0:02:46]} 11. h3 {[%clk 0:02:52]}  Bf5 {[%clk 0:02:45]} 12. Ne5 {[%clk 0:02:50]}  Ne4 {[%clk 0:02:42]} 13. Nxe4 {[%clk 0:02:47]}  Bxe4 {[%clk 0:02:42]} 14. f3 {[%clk 0:02:32]}  Bg6 {[%clk 0:02:39]} 15. Rc1 {[%clk 0:02:31]}  Nxe5 {[%clk 0:02:31]} 16. dxe5 {[%clk 0:02:30]}  Bc5 {[%clk 0:02:30]} 17. Bd4 {[%clk 0:02:07]}  Bxa3 {[%clk 0:02:29]} 18. Ra1 {[%clk 0:02:07]}  Bb4 {[%clk 0:02:28]} 19. c5 {[%clk 0:02:06]}  Qe7 {[%clk 0:02:24]} 20. Qc1 {[%clk 0:02:04]}  f6 {[%clk 0:02:24]} 21. f4 {[%clk 0:01:42]}  fxe5 {[%clk 0:02:24]} 22. fxe5 {[%clk 0:01:38]}  Rxf1+ {[%clk 0:02:23]} 23. Bxf1 {[%clk 0:01:38]}  Rf8 {[%clk 0:02:22]} 24. Ra2 {[%clk 0:01:35]}  Qh4 {[%clk 0:02:19]} 25. Qd1 {[%clk 0:00:59]}  Be4 {[%clk 0:02:14]} 26. Qg4 {[%clk 0:00:56]}  Qxg4 {[%clk 0:02:01]} 27. hxg4 {[%clk 0:00:56]}  h6 {[%clk 0:02:01]} 28. Be2 {[%clk 0:00:50]}  Kh7 {[%clk 0:02:00]} 29. Bd1 {[%clk 0:00:44]}  Kg6 {[%clk 0:01:59]} 30. Kh2 {[%clk 0:00:44]}  Kg5 {[%clk 0:01:58]} 31. Kg3 {[%clk 0:00:44]}  Rf1 {[%clk 0:01:57]} 32. Bf3 {[%clk 0:00:44]}  Be1+ {[%clk 0:01:54]} 33. Kh2 {[%clk 0:00:40]}  Bxf3 {[%clk 0:01:54]} 34. gxf3 {[%clk 0:00:40]}  Rxf3 {[%clk 0:01:53]} 0-1


[Site "https://www.chess.com"]

[Event "Titled Tuesday Blitz February 15 Early 2022"]
[White "Guliyev, Namig"]
[Black "Dilmukhametov, Artur"]
[WhiteFideId "13400363"]
[BlackFideId "24179922"]
[WhiteElo "2487"]
[BlackElo "2266"]
[Result "1-0"]
[Round "01"]
[TimeControl "180+1"]
[Date "2022.02.15"]
[WhiteClock "0:02:06"]
[BlackClock "0:00:59"]

1. e4 {[%clk 0:02:58]}  e6 {[%clk 0:02:58]} 2. d4 {[%clk 0:02:58]}  d5 {[%clk 0:02:57]} 3. Nc3 {[%clk 0:02:59]}  Bb4 {[%clk 0:02:55]} 4. e5 {[%clk 0:02:59]}  Ne7 {[%clk 0:02:54]} 5. Qg4 {[%clk 0:02:57]}  Bxc3+ {[%clk 0:02:52]} 6. bxc3 {[%clk 0:02:57]}  g6 {[%clk 0:02:49]} 7. Bg5 {[%clk 0:02:52]}  Nbc6 {[%clk 0:02:48]} 8. Bf6 {[%clk 0:02:51]}  Rg8 {[%clk 0:02:46]} 9. Qh4 {[%clk 0:02:49]}  h5 {[%clk 0:02:45]} 10. Bd3 {[%clk 0:02:47]}  b6 {[%clk 0:02:43]} 11. Ne2 {[%clk 0:02:47]}  Bb7 {[%clk 0:02:39]} 12. O-O {[%clk 0:02:41]}  Qd7 {[%clk 0:02:39]} 13. f4 {[%clk 0:02:39]}  O-O-O {[%clk 0:02:38]} 14. h3 {[%clk 0:02:40]}  Rdf8 {[%clk 0:02:37]} 15. g4 {[%clk 0:02:40]}  hxg4 {[%clk 0:02:31]} 16. hxg4 {[%clk 0:02:41]}  g5 {[%clk 0:02:20]} 17. Bxg5 {[%clk 0:02:34]}  Ng6 {[%clk 0:02:17]} 18. Qg3 {[%clk 0:02:32]}  Rh8 {[%clk 0:02:16]} 19. Kf2 {[%clk 0:02:30]}  Nce7 {[%clk 0:02:15]} 20. Rh1 {[%clk 0:02:28]}  a5 {[%clk 0:02:13]} 21. Bf6 {[%clk 0:02:28]}  Rxh1 {[%clk 0:02:09]} 22. Rxh1 {[%clk 0:02:29]}  b5 {[%clk 0:02:06]} 23. Qf3 {[%clk 0:02:24]}  b4 {[%clk 0:02:05]} 24. f5 {[%clk 0:02:23]}  exf5 {[%clk 0:01:55]} 25. gxf5 {[%clk 0:02:24]}  bxc3 {[%clk 0:01:38]} 26. fxg6 {[%clk 0:02:16]}  fxg6 {[%clk 0:01:37]} 27. Rh7 {[%clk 0:02:16]}  Re8 {[%clk 0:01:29]} 28. Bxg6 {[%clk 0:02:12]}  Bc6 {[%clk 0:01:15]} 29. Bxe8 {[%clk 0:02:08]}  Qxe8 {[%clk 0:01:15]} 30. Rxe7 {[%clk 0:02:08]}  Qg8 {[%clk 0:01:09]} 31. e6 {[%clk 0:02:07]}  Kb7 {[%clk 0:01:08]} 32. Be5 {[%clk 0:02:07]}  Qd8 {[%clk 0:01:06]} 33. Rxc7+ {[%clk 0:02:07]}  Kb6 {[%clk 0:01:04]} 34. e7 {[%clk 0:02:07]}  Qe8 {[%clk 0:01:03]} 35. Qf6 {[%clk 0:02:08]}  Qg8 {[%clk 0:00:59]} 36. Qxc6# {[%clk 0:02:06]} 1-0


[Site "https://www.chess.com"]